fUSD/lending_fUSD_20250814
["ID","MTS","AMOUNT","RATE_DAILY","PERIOD"]
[379160598,1755168704320,-400.0,0.0003589,12]
[379160599,1755168704330,-400.0,0.0003589,12]
[379160600,1755168704339,-733.31,0.0003589,12]
[379160601,1755168704351,-2815.98,0.0003589,12]
[379160602,1755168704364,-2327.52,0.0003589,12]
[379160603,1755168704374,-297.33446219,0.0003589,12]
[379160604,1755168704383,-400.0,0.0003589,12]
[379160605,1755168704393,-400.0,0.0003589,12]
[379160606,1755168704403,-348.05,0.0003589,12]
[379160607,1755168704412,-723.61,0.0003589,12]
[379160608,1755168704421,-719.92,0.0003589,12]
[379160609,1755168704431,-400.0,0.0003589,12]
[379160610,1755168704440,-400.0,0.0003589,12]
[379160611,1755168704727,-400.0,0.0003589,12]
[379160612,1755168704760,-1008.84,0.0003589,12]
[379160613,1755168704770,-400.0,0.0003589,12]
[379160614,1755168704780,-1777.34,0.0003589,12]
[379160615,1755168704789,-1724.9,0.0003589,12]
[379160616,1755168704798,-560.49,0.0003589,12]
[379160617,1755168704808,-1889.996919,0.0003589,12]
[379160618,1755168704817,-400.0,0.0003589,12]
[379160619,1755168704827,-2319.78,0.0003589,12]
[379160620,1755168704837,-1109.76,0.0003589,12]
[379160621,1755168704846,-400.0,0.0003589,12]
[379160622,1755168704855,-400.0,0.0003589,12]
[379160623,1755168704864,-1151.7,0.0003589,12]
[379160624,1755168704874,-873.16,0.0003589,12]
[379160625,1755168704883,-2243.35,0.0003589,12]
[379160626,1755168704893,-400.0,0.0003589,12]
[379160627,1755168704902,-4291.04,0.0003589,12]
[379160628,1755168704911,-400.0,0.0003589,12]
[379160629,1755168704921,-1804.76,0.0003589,12]
[379160630,1755168704930,-3852.15,0.0003589,12]
[379160631,1755168704939,-400.0,0.0003589,12]
[379160632,1755168704948,-1600.17,0.0003589,12]
[379160633,1755168704958,-809.809754,0.0003589,7]
[379160634,1755168704970,-400.0,0.0003589,12]
[379160635,1755168704979,-2904.13,0.0003589,12]
[379160636,1755168704989,-400.0,0.0003589,12]
[379160637,1755168704998,-400.0,0.0003589,12]
[379160638,1755168705008,-2492.59,0.0003589,12]
[379160639,1755168705017,-766.63,0.0003589,12]
[379160640,1755168705027,-400.0,0.0003589,12]
[379160641,1755168705037,-823.08,0.0003589,12]
[379160642,1755168705050,-1966.38,0.0003589,12]
[379160643,1755168705060,-780.41,0.0003589,12]
[379160644,1755168705070,-809.809754,0.0003589,7]
[379160645,1755168705080,-400.0,0.0003589,12]
[379160646,1755168705090,-406.48,0.0003589,12]
[379160647,1755168705100,-4173.85,0.0003589,12]
[379160648,1755168705110,-2277.23,0.0003589,12]
[379160649,1755168705120,-2791.47,0.0003589,12]
[379160650,1755168705130,-527.68,0.0003589,12]
[379160651,1755168705140,-150.555591,0.0003589,12]
[379160652,1755168705150,-400.0,0.0003589,12]
[379160653,1755168705159,-238.532414,0.0003589,7]
[379160654,1755168705169,-238.532414,0.0003589,7]
[379160655,1755168705179,-400.0,0.0003589,12]
[379160656,1755168705188,-747.83,0.0003589,12]
[379160657,1755168705198,-550.18,0.0003589,12]
[379160658,1755168705208,-151.0,0.0003589,7]
[379160659,1755168705217,-160.512608,0.0003589,12]
[379160660,1755168705230,-662.78,0.0003589,12]
[379160661,1755168705239,-400.0,0.0003589,12]
[379160662,1755168705249,-238.532414,0.0003589,7]
[379160663,1755168705259,-238.532414,0.0003589,7]
[379160664,1755168705268,-5412.38,0.0003589,12]
[379160665,1755168705279,-580.19,0.0003589,12]
[379160666,1755168705289,-777.12,0.0003589,12]
[379160667,1755168705300,-400.0,0.0003589,12]
[379160668,1755168705310,-400.0,0.0003589,12]
[379160669,1755168705319,-400.0,0.0003589,12]
[379160670,1755168705329,-400.0,0.0003589,12]
[379160671,1755168705338,-3155.75,0.0003589,12]
[379160672,1755168705347,-400.0,0.0003589,12]
[379160673,1755168705356,-400.0,0.0003589,12]
[379160674,1755168705365,-400.0,0.0003589,12]
[379160675,1755168705375,-400.0,0.0003589,12]
[379160676,1755168705384,-574.7,0.0003589,12]
[379160677,1755168705394,-917.92,0.0003589,12]
[379160678,1755168705403,-461.0,0.0003589,12]
[379160679,1755168705412,-400.0,0.0003589,12]
[379160680,1755168705422,-3780.57,0.0003589,12]
[379160681,1755168705431,-2562.51,0.0003589,12]
[379160682,1755168705440,-3941.94,0.0003589,12]
[379160683,1755168705450,-2422.33767833,0.0003589,12]
[379160684,1755168705477,-486.20232167,0.0003589,12]
[379160685,1755168705486,-400.0,0.0003589,12]
[379160686,1755168705496,-400.0,0.0003589,12]
[379160687,1755168705505,-2497.02,0.0003589,12]
[379160688,1755168705515,-1532.09,0.0003589,12]
[379160689,1755168705523,-1131.87,0.0003589,12]
[379160690,1755168705538,-400.0,0.0003589,12]
[379160691,1755168705548,-634.28,0.0003589,12]
[379160692,1755168705557,-4170.532372,0.0003589,7]
[379160693,1755168705565,-400.0,0.0003589,12]
[379160694,1755168705575,-1146.21,0.0003589,12]
[379160695,1755168705584,-400.0,0.0003589,12]
[379160696,1755168705593,-4170.532372,0.0003589,7]
[379160697,1755168705602,-1856.69,0.0003589,12]
[379160698,1755168705611,-400.0,0.0003589,12]
[379160699,1755168705621,-400.0,0.0003589,12]
[379160700,1755168705630,-2678.13677433,0.0003589,12]
[379160701,1755168705643,-746.42322567,0.0003589,12]
[379160702,1755168705652,-2936.99,0.0003589,12]
[379160703,1755168705662,-658.86,0.0003589,12]
[379160704,1755168705674,-4170.532372,0.0003589,7]
[379160705,1755168705683,-1827.39525233,0.0003589,12]
[379160706,1755168705695,-1593.19474767,0.0003589,12]
[379160707,1755168705705,-956.70888185,0.0003589,7]
[379160708,1755168706457,-46.10206641,0.0003589,7]
[379160709,1755168706480,-482.96765498,0.000358,7]
[379160710,1755168706507,-258.72405402,0.000358,7]
[379160711,1755168706516,-1763.34352191,0.0003589,7]
[379160712,1755168706528,-854.93605512,0.0003589,7]
[379160713,1755168706539,-549.44184671,0.0003589,7]
[379160714,1755168706550,-400.0,0.0003589,12]
[379160715,1755168706559,-3210.11867227,0.0003589,12]
[379160716,1755168706571,-229.03132773,0.0003589,12]
[379160717,1755168706582,-400.0,0.0003589,12]
[379160718,1755168706591,-2276.63274607,0.0003589,12]
[379160719,1755168706646,-841.34725393,0.0003589,12]
[379160720,1755168706655,-400.0,0.0003589,12]
[379160721,1755168706666,-400.0,0.0003589,12]
[379160722,1755168706676,-400.0,0.0003589,12]
[379160723,1755168706685,-3150.61541223,0.0003589,12]
[379160724,1755168706699,-991.41458777,0.0003589,12]
[379160725,1755168706708,-3366.26,0.0003589,12]
[379160726,1755168706718,-400.0,0.0003589,12]
[379160727,1755168706727,-39.28779553,0.0003589,12]
[379160728,1755168706741,-790.48220447,0.0003589,12]
[379160729,1755168706750,-426.17533761,0.0003589,12]
[379160730,1755168706759,-400.0,0.0003589,12]
[379160731,1755168706768,-400.0,0.0003589,12]
[379160732,1755168706777,-400.0,0.0003589,12]
[379160733,1755168706787,-1639.17,0.0003589,12]
[379160734,1755168706796,-400.0,0.0003589,12]
[379160735,1755168706806,-400.0,0.0003589,12]
[379160736,1755168706816,-3395.45,0.0003589,12]
[379160737,1755168706827,-1006.08,0.0003589,12]
[379160738,1755168706836,-3282.75,0.0003589,12]
[379160739,1755168706846,-400.0,0.0003589,12]
[379160740,1755168706855,-744.541939,0.0003589,7]
[379160741,1755168706864,-744.541939,0.0003589,7]
[379160742,1755168706874,-3198.45,0.0003589,12]
[379160743,1755168706884,-903.220085,0.0003589,7]
[379160744,1755168706893,-903.220085,0.0003589,7]
[379160745,1755168706902,-400.0,0.0003589,12]
[379160746,1755168706911,-744.541939,0.0003589,7]
[379160747,1755168706920,-744.541939,0.0003589,7]
[379160748,1755168706930,-903.220085,0.0003589,7]
[379160749,1755168706939,-2663.39,0.0003589,12]
[379160750,1755168706948,-400.0,0.0003589,12]
[379160751,1755168706957,-903.220085,0.0003589,7]
[379160752,1755168706966,-2468.968934,0.0003589,7]
[379160753,1755168706975,-151.0,0.0003589,7]
[379160754,1755168706984,-151.0,0.0003589,7]
[379160755,1755168706994,-2067.11,0.0003589,12]
[379160756,1755168707003,-865.77,0.0003589,12]
[379160757,1755168707015,-400.0,0.0003589,12]
[379160758,1755168707024,-2034.23,0.0003589,12]
[379160759,1755168707033,-2594.93,0.0003589,12]
[379160760,1755168707043,-400.0,0.0003589,12]
[379160761,1755168707055,-400.0,0.0003589,12]
[379160762,1755168707065,-478.34,0.0003589,12]
[379160763,1755168707074,-400.0,0.0003589,12]
[379160764,1755168707084,-2468.968934,0.0003589,7]
[379160765,1755168707093,-400.0,0.0003589,12]
[379160766,1755168707103,-3988.59,0.0003589,12]
[379160767,1755168707112,-158.06569364,0.0003589,12]
[379160768,1755168707122,-1604.22,0.0003589,12]
[379160769,1755168707132,-378.43822868,0.0003589,12]
[379160770,1755168707141,-400.0,0.0003589,12]
[379160771,1755168707151,-2779.82,0.0003589,12]
[379160772,1755168707160,-400.0,0.0003589,12]
[379160773,1755168707169,-2852.68,0.0003589,12]
[379160774,1755168707178,-400.0,0.0003589,12]
[379160775,1755168707188,-327.882904,0.0003589,7]
[379160776,1755168707197,-1941.2,0.0003589,12]
[379160777,1755168707207,-327.882904,0.0003589,7]
[379160778,1755168707216,-512.96715183,0.0003589,12]
[379160779,1755168707242,-485.6852,0.00035616,12]
[379160780,1755168709056,-962.5,0.00018889,2]
[379160781,1755168709068,-1910.25,0.00018889,2]
[379160782,1755168709094,-807.39338201,0.00018889,2]
[379160783,1755168709106,-1892.60661799,0.00018889,2]
[379160784,1755168709134,-300.0,0.00018889,2]
[379160785,1755168709169,-343.4,0.00018889,2]
[379160786,1755168709200,-4031.94201976,0.00018889,2]
[379160787,1755168709211,-933.50036972,0.000189,2]
[379160788,1755168709223,-741.691709,0.00021258,2]
[379160789,1755168709235,-151.0,0.00021258,2]
[379160790,1755168709245,-625.02286542,0.00021669,2]
[379160791,1755168709257,-1218.86891499,0.00021669,2]
[379160792,1755168709268,-741.691709,0.000249,7]
[379160793,1755168709279,-160.0,0.00032635,2]
[379160794,1755168709289,-324.84541341,0.000336,7]
[379160795,1755168709300,-416.84629559,0.000336,7]
[379160796,1755168709311,-1065.17309665,0.00035616,12]
[379160797,1755168709409,-1166.20365439,0.00035616,12]
[379160798,1755168709420,-4251.96804896,0.00035616,12]
[379160799,1755168709430,-1032.24,0.00035616,12]
[379160800,1755168709440,-400.0,0.00035616,12]
[379160801,1755168709450,-307.92905548,0.00035616,12]
[379160802,1755168709462,-92.07094452,0.00035616,12]
[379160803,1755168709472,-400.0,0.00035616,12]
[379160804,1755168709481,-400.0,0.00035616,12]
[379160805,1755168709491,-2850.1606824,0.00035753,12]
[379160806,1755168709506,-364.35,0.00035616,12]
[379160807,1755168709518,-303.02721824,0.00035616,12]
[379160808,1755168709541,-2315.76278176,0.00035616,12]
[379160809,1755168709552,-4118.8693176,0.00035753,12]
[379160810,1755168709562,-400.0,0.00035753,12]
[379160811,1755168709572,-1032.24,0.00035753,12]
[379160812,1755168709582,-400.0,0.00035753,12]
[379160813,1755168709592,-400.0,0.00035753,12]
[379160814,1755168709602,-400.0,0.00035753,12]
[379160815,1755168709611,-1.12284817,0.0003589,12]
[379160816,1755168709621,-332.53102878,0.0003589,12]
[379160817,1755168709632,-279.77897122,0.0003589,12]
[379160818,1755168709642,-471.8,0.0003589,12]
[379160819,1755168709651,-1616.75001672,0.0003589,12]
[379160820,1755168710570,-464.25658108,0.00018898,2]
[379160821,1755168710580,-554.46936043,0.00018898,2]
[379160822,1755168710589,-151.0,0.000249,7]
[379160823,1755168710599,-102.95217495,0.000336,7]
[379160824,1755168710621,-48.04782505,0.000336,7]
[379160825,1755168710630,-400.0,0.00035616,12]
[379160826,1755168710639,-400.0,0.00035616,12]
[379160827,1755168710648,-609.87217495,0.00035616,7]
[379160828,1755168710809,-131.81953405,0.00035616,7]
[379160829,1755168710819,-400.0,0.00035616,12]
[379160830,1755168710827,-741.691709,0.00035616,7]
[379160831,1755168710837,-151.0,0.00035616,7]
[379160832,1755168710847,-222.27836576,0.00035616,7]
[379160833,1755168710858,-519.41334324,0.00035616,7]
[379160834,1755168710867,-400.0,0.00035616,12]
[379160835,1755168710876,-151.0,0.00035616,7]
[379160836,1755168710885,-151.0,0.00035616,7]
[379160837,1755168710895,-1326.69467516,0.00035616,12]
[379160838,1755168710978,-1193.47,0.00031,30]
[379160839,1755168710987,-2118.45532484,0.00035616,12]
[379160840,1755168710996,-996.53,0.00035616,12]
[379160841,1755168711006,-400.0,0.00035616,12]
[379160842,1755168711015,-1023.93,0.00035616,12]
[379160843,1755168711024,-400.0,0.00035616,12]
[379160844,1755168711033,-1872.22609588,0.00035753,12]
[379160845,1755168711046,-643.90036479,0.00035753,12]
[379160846,1755168711061,-467.01353933,0.00035753,12]
[379160847,1755168711071,-335.01146265,0.00035753,12]
[379160848,1755168711083,-64.98853735,0.00035753,12]
[379160849,1755168711095,-152.75,0.00035753,12]
[379160850,1755168711104,-741.691709,0.00035753,7]
[379160851,1755168711114,-235.63732805,0.00035753,7]
[379160852,1755168711139,-400.0,0.00035753,7]
[379160853,1755168711150,-106.05438095,0.00035753,7]
[379160854,1755168711159,-151.0,0.00035753,7]
[379160855,1755168711169,-3445.15,0.00035753,12]
[379160856,1755168711178,-996.53,0.00035753,12]
[379160857,1755168711188,-400.0,0.00035753,12]
[379160858,1755168711197,-151.0,0.00035753,7]
[379160859,1755168711206,-599.75998328,0.0003589,12]
[379160860,1755168711215,-400.0,0.0003589,12]
[379160861,1755168711225,-327.882904,0.0003589,7]
[379160862,1755168711234,-327.882904,0.0003589,7]
[379160863,1755168711243,-3252.01,0.0003589,12]
[379160864,1755168711252,-415.47122531,0.0003589,12]
[379160865,1755168711262,-658.73,0.0003589,12]
[379160866,1755168711277,-1777.42,0.0003589,12]
[379160867,1755168711286,-400.0,0.0003589,12]
[379160868,1755168711295,-2274.16,0.0003589,12]
[379160869,1755168711305,-400.0,0.0003589,12]
[379160870,1755168711315,-1973.174496,0.0003589,7]
[379160871,1755168711323,-1973.174496,0.0003589,7]
[379160872,1755168711335,-1766.24,0.0003589,12]
[379160873,1755168711350,-821.08,0.0003589,12]
[379160874,1755168711359,-5925.8,0.0003589,12]
[379160875,1755168711368,-400.0,0.0003589,12]
[379160876,1755168711378,-3066.28,0.0003589,12]
[379160877,1755168711387,-3165.34,0.0003589,12]
[379160878,1755168711396,-1763.2,0.0003589,12]
[379160879,1755168711405,-400.0,0.0003589,12]
[379160880,1755168711415,-2054.66,0.0003589,12]
[379160881,1755168711424,-1973.174496,0.0003589,7]
[379160882,1755168711434,-478.3,0.0003589,12]
[379160883,1755168711443,-400.0,0.0003589,12]
[379160884,1755168711452,-1398.4,0.0003589,12]
[379160885,1755168711461,-400.0,0.0003589,12]
[379160886,1755168711471,-1269.5,0.0003589,12]
[379160887,1755168711481,-400.0,0.0003589,12]
[379160888,1755168711490,-1463.58,0.0003589,12]
[379160889,1755168711500,-911.38,0.0003589,12]
[379160890,1755168711510,-1101.74,0.0003589,12]
[379160891,1755168711519,-1180.46,0.0003589,12]
[379160892,1755168711528,-551.662638,0.0003589,7]
[379160893,1755168711537,-400.0,0.0003589,12]
[379160894,1755168711546,-509.56830757,0.0003589,12]
[379160895,1755168711556,-551.662638,0.0003589,7]
[379160896,1755168711566,-1973.174496,0.0003589,7]
[379160897,1755168711575,-400.0,0.0003589,12]
[379160898,1755168711585,-496.57,0.0003589,12]
[379160899,1755168711595,-400.0,0.0003589,12]
[379160900,1755168711604,-1171.9,0.0003589,12]
[379160901,1755168711614,-400.0,0.0003589,12]
[379160902,1755168711623,-551.662638,0.0003589,7]
[379160903,1755168711633,-551.662631,0.0003589,7]
[379160904,1755168711642,-1519.23,0.0003589,12]
[379160905,1755168711652,-2277.93,0.0003589,120]
[379160906,1755168711662,-435.86,0.0003589,12]
[379160907,1755168711672,-610.96,0.0003589,12]
[379160908,1755168711682,-400.0,0.0003589,12]
[379160909,1755168711691,-400.0,0.0003589,12]
[379160910,1755168711700,-519.88,0.0003589,12]
[379160911,1755168711710,-400.0,0.0003589,12]
[379160912,1755168711719,-400.0,0.0003589,12]
[379160913,1755168711729,-400.0,0.0003589,12]
[379160914,1755168711738,-1133.12,0.0003589,12]
[379160915,1755168711748,-1457.31,0.0003589,12]
[379160916,1755168711757,-2752.21,0.0003589,12]
[379160917,1755168711766,-400.0,0.0003589,12]
[379160918,1755168711776,-1527.4,0.0003589,12]
[379160919,1755168711785,-400.0,0.0003589,12]
[379160920,1755168711794,-394.150184,0.0003589,7]
[379160921,1755168711804,-394.150184,0.0003589,7]
[379160922,1755168711813,-1417.13,0.0003589,12]
[379160923,1755168711822,-2021.02,0.0003589,12]
[379160924,1755168711831,-1158.88,0.0003589,12]
[379160925,1755168711840,-3202.202198,0.0003589,7]
[379160926,1755168711849,-3202.202198,0.0003589,7]
[379160927,1755168711859,-823.99,0.0003589,12]
[379160928,1755168711868,-400.0,0.0003589,12]
[379160929,1755168711878,-394.150184,0.0003589,7]
[379160930,1755168711887,-394.150182,0.0003589,7]
[379160931,1755168711896,-2171.98,0.0003589,12]
[379160932,1755168711905,-3438.65,0.0003589,12]
[379160933,1755168711914,-400.0,0.0003589,12]
[379160934,1755168711923,-400.0,0.0003589,12]
[379160935,1755168711934,-221.09483608,0.0003589,12]
[379160936,1755168713146,-1023.93,0.00035753,12]
[379160937,1755168713157,-1594.97516392,0.0003589,12]
[379160938,1755168713168,-2895.96,0.0003589,12]
[379160939,1755168713179,-1880.66,0.0003589,12]
[379160940,1755168713190,-706.65,0.0003589,12]
[379160941,1755168713201,-400.0,0.0003589,12]
[379160942,1755168713211,-400.0,0.0003589,12]
[379160943,1755168713221,-4392.13,0.0003589,12]
[379160944,1755168713232,-1982.41,0.0003589,12]
[379160945,1755168713242,-4577.96,0.0003589,12]
[379160946,1755168713252,-2509.16159515,0.0003589,12]
[379160947,1755168713301,-741.691709,0.000358,7]
[379160948,1755168713311,-81.48840485,0.0003589,12]
[379160949,1755168713321,-2774.80209908,0.0003589,7]
[379160950,1755168713334,-427.40009892,0.0003589,7]
[379160951,1755168713343,-3202.202198,0.0003589,7]
[379160952,1755168713355,-1864.97,0.0003589,12]
[379160953,1755168713365,-4123.32,0.0003589,12]
[379160954,1755168713376,-400.0,0.0003589,12]
[379160955,1755168713385,-400.0,0.0003589,12]
[379160956,1755168713396,-530.32504998,0.0003589,12]
[379160957,1755168713406,-400.0,0.0003589,12]
[379160958,1755168713417,-1207.01,0.0003589,12]
[379160959,1755168713428,-678.98,0.0003589,12]
[379160960,1755168713438,-2678.47,0.0003589,12]
[379160961,1755168713448,-187.3228031,0.0003589,12]
[379160962,1755168715073,14282.0,0.00017938,2]
[379160963,1755168727966,1468.75,0.00017934,2]
[379160972,1755168728491,1468.75,0.00024659,120]
[379160973,1755168728548,1468.75,0.00026901,120]
[379160974,1755168740330,1660.0,0.0003013,120]
[379160975,1755168740587,234.0,0.0003013,120]
[379160977,1755168754928,-175.52092535,0.00018518,2]
[379160978,1755168767712,269.31,0.00013699,2]
[379160979,1755168768606,-151.0,0.000249,7]
[379160980,1755168768630,-24.52092535,0.000249,7]
[379160981,1755168778695,913.0,0.0003013,120]
[379161046,1755168921044,215.28620792,0.0003013,120]
[379161078,1755169026606,2784.41473846,0.000195,3]
[379161080,1755169042723,2784.25,0.000195,3]
[379161084,1755169055956,2784.25,0.000195,3]
[379161087,1755169064793,150.0,0.0003,120]
[379161088,1755169067412,2784.25,0.000195,3]
[379161132,1755169169116,2784.25,0.000195,3]
[379161139,1755169181685,2784.25,0.000195,3]
[379161142,1755169187079,-182.4893803,0.00018418,2]
[379161216,1755169397814,-152.0,0.00018417,2]
[379161217,1755169399432,-78.44179256,0.00018417,2]
[379161218,1755169399455,-108.80504125,0.00018418,2]
[379161219,1755169402913,-21.90387845,0.00018418,2]
[379161220,1755169418151,2000.0,0.00018417,12]
[379161221,1755169418571,2000.0,0.00018417,12]
[379161222,1755169418854,2000.0,0.00018417,12]
[379161223,1755169419168,2000.0,0.00018417,12]
[379161224,1755169420140,2000.0,0.00018417,12]
[379161225,1755169420509,2000.0,0.00018417,12]
[379161226,1755169420900,2000.0,0.00018417,12]
[379161227,1755169421788,457.713,0.00018417,12]
[379161253,1755169805627,962.196,0.00018417,12]
[379161258,1755169831875,-153.62786172,0.00018417,2]
[379161259,1755169831885,-471.60089257,0.00018517,2]
[379161260,1755169831986,-3228.39910743,0.00018517,2]
[379161261,1755169831997,-169.13657953,0.00018517,2]
[379161262,1755169832006,-151.0,0.00018518,2]
[379161263,1755169832015,-151.59014724,0.00018518,2]
[379161264,1755169832029,-1504.53115509,0.00018972,2]
[379161265,1755169832039,-151.0,0.00019178,2]
[379161266,1755169832049,-156.587,0.00019726,2]
[379161267,1755169832058,-14634.59167571,0.0002,7]
[379161268,1755169832082,-19762.74358749,0.0002,7]
[379161269,1755169832094,-16858.55169707,0.0002,7]
[379161270,1755169832136,-7664.436256,0.0002,7]
[379161271,1755169832149,-105473.32727622,0.0002,7]
[379161272,1755169832165,-22.34950751,0.0002,7]
[379161273,1755169832175,-153.6278617,0.00020118,2]
[379161274,1755169832185,-1200.0,0.00020173,2]
[379161275,1755169832195,-300.0,0.00020175,2]
[379161276,1755169832206,-300.0,0.00020175,2]
[379161278,1755169832217,-300.0,0.00020175,2]
[379161280,1755169832227,-1468.75,0.00020176,2]
[379161282,1755169832237,-269.31,0.00020187,2]
[379161284,1755169832248,-250.0,0.00020259,2]
[379161286,1755169832257,-162.380719,0.00020274,2]
[379161288,1755169832267,-3133.49075588,0.0002036,2]
[379161290,1755169832279,-250.0,0.00020369,2]
[379161292,1755169832288,-250.0,0.00020369,2]
[379161294,1755169832297,-300.0,0.00020369,2]
[379161296,1755169832306,-168.3888056,0.00020822,2]
[379161298,1755169832315,-559.61185286,0.00020846,2]
[379161300,1755169832324,-617.96908373,0.00020857,2]
[379161302,1755169832333,-953.0,0.00021244,2]
[379161304,1755169832343,-226.7789535,0.00021245,2]
[379161306,1755169832352,-200.0,0.00021245,2]
[379161308,1755169832362,-151.0,0.00021245,2]
[379161310,1755169832375,-151.0,0.00021245,2]
[379161312,1755169832385,-151.0,0.00021245,2]
[379161314,1755169832395,-151.0,0.00021245,2]
[379161316,1755169832404,-151.0,0.00021245,2]
[379161318,1755169832415,-151.0,0.00021245,2]
[379161320,1755169832424,-151.0,0.00021245,2]
[379161322,1755169832433,-151.0,0.00021245,2]
[379161324,1755169832442,-151.0,0.00021245,2]
[379161325,1755169832453,-151.0,0.00021245,2]
[379161328,1755169832463,-151.0,0.00021245,2]
[379161330,1755169832473,-500.0,0.00021245,2]
[379161331,1755169832483,-500.0,0.00021245,2]
[379161333,1755169832492,-500.0,0.00021245,2]
[379161335,1755169832502,-500.0,0.00021245,2]
[379161337,1755169832512,-500.0,0.00021245,2]
[379161339,1755169832524,-500.0,0.00021245,2]
[379161341,1755169832534,-500.0,0.00021245,2]
[379161344,1755169832544,-500.0,0.00021245,2]
[379161345,1755169832554,-500.0,0.00021245,2]
[379161347,1755169832563,-500.0,0.00021245,2]
[379161349,1755169832573,-300.04586995,0.00021245,2]
[379161351,1755169832582,-600.0,0.00021245,2]
[379161353,1755169832591,-600.0,0.00021245,2]
[379161354,1755169832601,-600.0,0.00021245,2]
[379161356,1755169832610,-600.0,0.00021245,2]
[379161358,1755169832620,-500.0,0.00021245,2]
[379161360,1755169832629,-151.0,0.00021258,2]
[379161362,1755169832638,-151.0,0.00021258,2]
[379161364,1755169832648,-151.0,0.00021258,2]
[379161366,1755169832657,-151.0,0.00021258,2]
[379161368,1755169832668,-1922.897637,0.00021258,2]
[379161370,1755169832678,-1922.897637,0.00021258,2]
[379161372,1755169832687,-287.233139,0.00021258,2]
[379161374,1755169832696,-287.233139,0.00021258,2]
[379161376,1755169832706,-151.0,0.00021258,2]
[379161378,1755169832715,-151.0,0.00021258,2]
[379161380,1755169832724,-151.0,0.00021258,2]
[379161382,1755169832734,-2284.106735,0.00021258,2]
[379161383,1755169832743,-2284.106735,0.00021258,2]
[379161385,1755169832752,-1990.655451,0.00021258,2]
[379161387,1755169832762,-151.0,0.00021258,2]
[379161389,1755169832773,-1990.655451,0.00021258,2]
[379161391,1755169832782,-340.268615,0.00021258,2]
[379161393,1755169832792,-340.268615,0.00021258,2]
[379161395,1755169832802,-151.0,0.00021258,2]
[379161397,1755169832812,-151.0,0.00021258,2]
[379161399,1755169832823,-196.049567,0.00021258,2]
[379161401,1755169832833,-196.049567,0.00021258,2]
[379161403,1755169832843,-173.983887,0.00021258,2]
[379161405,1755169832852,-173.983887,0.00021258,2]
[379161407,1755169832861,-231.478503,0.00021258,2]
[379161409,1755169832871,-231.478503,0.00021258,2]
[379161411,1755169832880,-500.0,0.000213,2]
[379161413,1755169832890,-500.0,0.00021355,2]
[379161415,1755169832899,-174.61919141,0.0002137,2]
[379161417,1755169832909,-3497.91650022,0.000214,2]
[379161419,1755169832918,-500.0,0.0002141,2]
[379161421,1755169832928,-500.0,0.00021465,2]
[379161423,1755169832937,-500.0,0.0002152,2]
[379161425,1755169832947,-342.36,0.00021556,2]
[379161427,1755169832957,-500.0,0.00021575,2]
[379161429,1755169832966,-150.0,0.00021614,2]
[379161431,1755169832976,-500.0,0.0002163,2]
[379161433,1755169832985,-19204.54,0.00021641,2]
[379161435,1755169832995,-500.0,0.00021685,2]
[379161437,1755169833004,-500.0,0.0002174,2]
[379161439,1755169833013,-153.6278617,0.00021818,2]
[379161441,1755169833024,-666.0,0.00021918,3]